[Event "Mistrovství Čech mládeže 2023 - HD14"]
[Site "Harrachov, Czech Republic"]
[Date "2023.10.25"]
[Round "6.13"]
[White "Nguyen, Nhat Minh Thu"]
[Black "Chon, Jeremy"]
[Result "0-1"]
[TimeControl "90m + 30s"]
[WhiteElo "1238"]
[BlackElo "1538"]

1. e4 c5 {[%emt 00:00:01]} 2. Nf3 {[%emt 00:00:08]} g6 {[%emt 00:00:01]} 3. d4
{[%clk 01:31:23]} {[%emt 00:00:26]} cxd4 {[%clk 01:31:58]} {[%emt 00:00:01]} 4.
Nxd4 {[%clk 01:31:02]} {[%emt 00:00:51]} Bg7 {[%clk 01:32:28]} 5. Nc3 {[%clk
01:30:24]} {[%emt 00:01:08]} Nc6 {[%clk 01:32:54]} {[%emt 00:00:04]} 6. Be3
{[%clk 01:30:28]} {[%emt 00:00:26]} Nf6 {[%clk 01:33:21]} {[%emt 00:00:03]} 7.
Qd2 {[%clk 01:28:51]} {[%emt 00:02:08]} O-O {[%clk 01:33:24]} {[%emt 00:00:27]}
8. h3 {[%clk 01:23:06]} {[%emt 00:06:15]} d5 {[%clk 01:32:01]} {[%emt
00:01:53]} 9. Nxc6 {[%emt 00:04:40]} bxc6 {[%clk 01:32:27]} {[%emt 00:00:02]}
10. O-O-O {[%emt 00:03:30]} e6 {[%clk 01:30:26]} {[%emt 00:02:08]} 11. Bg5
{[%clk 01:09:52]} {[%emt 00:06:59]} Qc7 {[%clk 01:23:55]} {[%emt 00:07:01]} 12.
e5 {[%emt 00:16:48]} Nd7 {[%clk 01:13:18]} {[%emt 00:11:05]} 13. Be7 {[%emt
00:01:50]} Qxe5 {[%clk 01:10:19]} {[%emt 00:03:28]} 14. Bxf8 {[%clk 00:50:13]}
{[%emt 00:02:34]} Kxf8 {[%clk 01:10:20]} {[%emt 00:00:28]} 15. f4 {[%clk
00:48:51]} {[%emt 00:01:51]} Qc7 {[%clk 01:07:22]} {[%emt 00:03:28]} 16. g3
{[%emt 00:06:29]} Qa5 {[%clk 00:53:15]} {[%emt 00:14:35]} 17. a3 {[%clk
00:29:35]} {[%emt 00:13:51]} Rb8 {[%clk 00:52:11]} {[%emt 00:01:35]} 18. Qe3
{[%emt 00:10:59]} Nc5 {[%clk 00:32:02]} {[%emt 00:20:37]} 19. Bg2 {[%clk
00:07:44]} {[%emt 00:11:53]} Ba6 {[%clk 00:23:18]} {[%emt 00:09:15]} 20. Rhe1
{[%clk 00:06:41]} {[%emt 00:01:34]} Rxb2 {[%clk 00:20:27]} {[%emt 00:03:21]} 21.
Nxd5 {[%emt 00:06:29]} Nb3+ {[%clk 00:15:10]} {[%emt 00:05:45]} 22. cxb3 {[%clk
00:00:43]} {[%emt 00:00:30]} Qxa3 {[%clk 00:15:19]} {[%emt 00:00:21]} 0-1

[Event "Mistrovství Čech mládeže 2023 - HD14"]
[Site "Harrachov, Czech Republic"]
[Date "2023.10.25"]
[Round "6.14"]
[White "Stefaniv, Vladislav"]
[Black "Jančík, Vojtěch"]
[Result "1-0"]
[TimeControl "90m + 30s"]
[WhiteElo "1566"]
[BlackElo "1219"]

1. d4 {[%clk 01:30:58]} {[%emt 00:00:01]} d5 {[%clk 01:30:29]} {[%emt
00:00:32]} 2. c4 {[%clk 01:31:19]} {[%emt 00:00:09]} e6 {[%clk 01:30:45]}
{[%emt 00:00:14]} 3. Nf3 {[%clk 01:31:19]} {[%emt 00:00:29]} f5 {[%clk
01:30:21]} {[%emt 00:00:55]} 4. e3 {[%clk 01:25:34]} {[%emt 00:06:15]} c6
{[%clk 01:27:34]} {[%emt 00:03:17]} 5. Bd3 {[%clk 01:24:57]} {[%emt 00:01:08]}
Nf6 {[%clk 01:23:04]} {[%emt 00:05:00]} 6. O-O {[%clk 01:24:54]} {[%emt
00:00:32]} Bd6 {[%clk 01:22:18]} {[%emt 00:01:16]} 7. Qc2 {[%clk 01:19:17]}
{[%emt 00:06:07]} O-O {[%clk 01:22:11]} {[%emt 00:00:36]} 8. Nbd2 {[%clk
01:16:32]} {[%emt 00:03:15]} Ne4 {[%clk 01:21:03]} {[%emt 00:01:39]} 9. b3
{[%clk 01:10:51]} {[%emt 00:06:11]} g5 {[%clk 01:19:22]} {[%emt 00:02:11]} 10.
Bb2 {[%clk 01:05:30]} {[%emt 00:05:50]} h5 {[%clk 01:19:03]} {[%emt 00:00:49]}
11. Ne5 {[%clk 01:00:27]} {[%emt 00:05:33]} Bxe5 {[%clk 01:18:45]} {[%emt
00:00:48]} 12. dxe5 {[%clk 01:00:52]} {[%emt 00:00:05]} g4 {[%clk 01:16:59]}
{[%emt 00:02:17]} 13. Bxe4 {[%clk 00:52:41]} {[%emt 00:08:40]} fxe4 {[%clk
01:14:11]} {[%emt 00:03:17]} 14. Rfd1 {[%clk 00:47:16]} {[%emt 00:05:55]} Nd7
{[%clk 01:08:42]} {[%emt 00:05:59]} 15. Ba3 {[%clk 00:41:01]} {[%emt 00:06:45]}
Rf5 {[%clk 01:06:18]} {[%emt 00:02:54]} 16. Bd6 {[%clk 00:38:28]} {[%emt
00:03:04]} Nxe5 {[%clk 01:06:14]} {[%emt 00:00:35]} 17. Bxe5 {[%clk 00:31:12]}
{[%emt 00:07:45]} Rxe5 {[%clk 01:06:26]} {[%emt 00:00:18]} 18. Nxe4 {[%clk
00:31:14]} {[%emt 00:00:29]} Qe7 {[%clk 01:03:08]} {[%emt 00:03:48]} 19. Ng3
{[%clk 00:30:34]} {[%emt 00:01:10]} Rg5 {[%clk 00:57:16]} {[%emt 00:06:22]} 20.
Nxh5 {[%clk 00:29:06]} {[%emt 00:01:58]} Qf7 {[%clk 00:48:16]} {[%emt
00:09:30]} 21. Ng3 {[%clk 00:28:46]} {[%emt 00:00:50]} Bd7 {[%clk 00:47:55]}
{[%emt 00:00:52]} 22. Rd2 {[%clk 00:25:13]} {[%emt 00:04:03]} Qf6 {[%clk
00:45:49]} {[%emt 00:02:36]} 23. Rad1 {[%clk 00:24:34]} {[%emt 00:01:09]} Kf7
{[%clk 00:44:35]} {[%emt 00:01:44]} 24. Ne4 {[%clk 00:21:18]} {[%emt 00:03:45]}
dxe4 {[%clk 00:42:38]} {[%emt 00:02:28]} 25. Rxd7+ {[%clk 00:21:43]} {[%emt
00:00:04]} Kf8 {[%clk 00:41:12]} {[%emt 00:01:56]} 26. Qxe4 {[%clk 00:19:57]}
{[%emt 00:02:15]} a5 {[%clk 00:37:13]} {[%emt 00:04:30]} 27. Qd4 {[%clk
00:12:04]} {[%emt 00:08:17]} Qg6 {[%clk 00:35:39]} {[%emt 00:02:09]} 28. Qh8+
{[%clk 00:11:27]} {[%emt 00:01:07]} 1-0

[Event "Mistrovství Čech mládeže 2023 - HD14"]
[Site "Harrachov, Czech Republic"]
[Date "2023.10.25"]
[Round "6.15"]
[White "Stibor, Ondřej"]
[Black "Sboev, Kirill"]
[Result "1-0"]
[TimeControl "90m + 30s"]
[WhiteElo "1170"]
[BlackElo "1556"]

1. e4 {[%clk 01:30:57]} {[%emt 00:00:02]} e5 {[%clk 01:30:55]} {[%emt
00:00:06]} 2. Nf3 {[%clk 01:31:24]} {[%emt 00:00:04]} Nc6 {[%clk 01:31:18]}
{[%emt 00:00:07]} 3. d4 {[%clk 01:31:49]} {[%emt 00:00:04]} exd4 {[%clk
01:31:42]} {[%emt 00:00:06]} 4. Bc4 {[%clk 01:32:16]} {[%emt 00:00:04]} Nf6
{[%clk 01:31:31]} {[%emt 00:00:41]} 5. O-O {[%clk 01:32:06]} {[%emt 00:00:39]}
Nxe4 {[%clk 01:31:34]} {[%emt 00:00:27]} 6. Re1 {[%clk 01:32:25]} {[%emt
00:00:11]} d5 {[%clk 01:31:43]} {[%emt 00:00:22]} 7. Bxd5 {[%clk 01:32:37]}
{[%emt 00:00:18]} Qxd5 {[%clk 01:32:01]} {[%emt 00:00:11]} 8. Nc3 {[%clk
01:33:00]} {[%emt 00:00:07]} Qa5 {[%clk 01:31:42]} {[%emt 00:00:49]} 9. Nxe4
{[%clk 01:32:06]} {[%emt 00:01:25]} Be6 {[%clk 01:31:24]} {[%emt 00:00:48]} 10.
Neg5 {[%clk 01:30:32]} {[%emt 00:02:04]} O-O-O {[%clk 01:31:22]} {[%emt
00:00:32]} 11. Nxe6 {[%clk 01:29:11]} {[%emt 00:01:51]} fxe6 {[%clk 01:31:44]}
{[%emt 00:00:08]} 12. Rxe6 {[%clk 01:28:19]} {[%emt 00:01:22]} Bd6 {[%clk
01:31:51]} {[%emt 00:00:22]} 13. Bd2 {[%clk 01:18:39]} {[%emt 00:10:10]} Qh5
{[%clk 01:30:39]} {[%emt 00:01:42]} 14. h3 {[%clk 01:17:32]} {[%emt 00:01:37]}
h6 {[%clk 01:25:04]} {[%emt 00:06:05]} 15. Qe2 {[%clk 01:15:40]} {[%emt
00:02:22]} Rhe8 {[%clk 01:10:42]} {[%emt 00:14:53]} 16. Re1 {[%clk 01:11:58]}
{[%emt 00:04:12]} Rxe6 {[%clk 01:07:20]} {[%emt 00:03:52]} 17. Qxe6+ {[%clk
01:12:16]} {[%emt 00:00:13]} Kb8 {[%clk 01:07:24]} {[%emt 00:00:25]} 18. Bc1
{[%clk 01:04:34]} {[%emt 00:08:11]} a6 {[%clk 01:02:52]} {[%emt 00:05:02]} 19.
a3 {[%clk 01:01:20]} {[%emt 00:03:44]} Be7 {[%clk 00:55:22]} {[%emt 00:08:00]}
20. Ne5 {[%clk 00:58:51]} {[%emt 00:02:59]} Nxe5 {[%clk 00:47:42]} {[%emt
00:08:10]} 21. Rxe5 {[%clk 00:57:49]} {[%emt 00:01:33]} Bg5 {[%clk 00:45:25]}
{[%emt 00:02:46]} 22. Bxg5 {[%clk 00:50:05]} {[%emt 00:08:15]} hxg5 {[%clk
00:45:11]} {[%emt 00:00:44]} 23. Qe7 {[%clk 00:46:57]} {[%emt 00:03:38]} Rd6
{[%clk 00:38:51]} {[%emt 00:06:50]} 24. Rc5 {[%clk 00:36:57]} {[%emt 00:10:29]}
Rc6 {[%clk 00:36:23]} {[%emt 00:02:59]} 25. Qd8+ {[%clk 00:35:00]} {[%emt
00:02:27]} Ka7 {[%clk 00:36:12]} {[%emt 00:00:41]} 26. Qxd4 {[%clk 00:35:28]}
{[%emt 00:00:02]} Rxc5 {[%emt 00:07:25]} 27. Qxc5+ {[%clk 00:31:14]} {[%emt
00:00:26]} Kb8 28. Qf8+ {[%emt 00:04:43]} Ka7 {[%emt 00:00:04]} 29. Qxg7 {[%clk
00:31:54]} {[%emt 00:00:26]} Qd1+ 30. Kh2 {[%emt 00:01:29]} Qd6+ {[%emt
00:03:46]} 31. g3 {[%clk 00:28:39]} {[%emt 00:00:02]} Qd2 {[%clk 00:29:15]}
{[%emt 00:00:55]} 32. Qf6 {[%clk 00:27:27]} {[%emt 00:01:43]} Qxc2 {[%clk
00:27:42]} {[%emt 00:02:02]} 33. h4 {[%clk 00:27:08]} {[%emt 00:00:49]} gxh4
{[%clk 00:25:46]} {[%emt 00:02:26]} 34. gxh4 {[%clk 00:27:20]} {[%emt
00:00:19]} Qe4 {[%clk 00:23:51]} {[%emt 00:02:25]} 35. Kg3 {[%clk 00:24:58]}
{[%emt 00:02:22]} Qd3+ {[%clk 00:22:39]} {[%emt 00:01:41]} 36. Kg4 {[%clk
00:25:18]} {[%emt 00:00:40]} Qe4+ {[%clk 00:20:46]} {[%emt 00:02:22]} 37. Kg5
{[%clk 00:24:53]} {[%emt 00:00:56]} Qg2+ {[%clk 00:20:30]} {[%emt 00:00:46]} 38.
Kh6 {[%clk 00:24:15]} {[%emt 00:01:08]} Qe4 {[%clk 00:17:48]} {[%emt 00:03:12]}
39. f4 {[%clk 00:22:10]} {[%emt 00:02:35]} Qd5 {[%clk 00:16:07]} {[%emt
00:02:12]} 40. f5 {[%clk 00:21:39]} {[%emt 00:01:02]} Qd2+ {[%clk 00:15:59]}
{[%emt 00:00:37]} 41. Kg7 {[%clk 00:21:06]} {[%emt 00:01:03]} Qd7 {[%clk
00:15:44]} {[%emt 00:00:45]} 42. Kf8 {[%clk 00:19:39]} {[%emt 00:01:56]} Qh7
{[%clk 00:14:09]} {[%emt 00:02:06]} 43. Qd4+ {[%clk 00:18:56]} {[%emt
00:01:13]} b6 {[%clk 00:12:56]} {[%emt 00:01:43]} 44. f6 {[%clk 00:18:37]}
{[%emt 00:00:49]} Qh8+ {[%clk 00:12:46]} {[%emt 00:00:39]} 45. Ke7 {[%clk
00:18:17]} {[%emt 00:00:51]} a5 {[%clk 00:11:55]} {[%emt 00:01:21]} 46. Qf4
{[%clk 00:16:59]} {[%emt 00:01:47]} 1-0

[Event "Mistrovství Čech mládeže 2023 - HD14"]
[Site "Harrachov, Czech Republic"]
[Date "2023.10.25"]
[Round "6.16"]
[White "Ugrenovich, Jaroslav"]
[Black "Holeš, Vojta"]
[Result "1/2-1/2"]
[TimeControl "90m + 30s"]
[WhiteElo "1277"]
[BlackElo "1440"]

1. e4 {[%clk 01:30:57]} {[%emt 00:00:03]} c5 {[%clk 01:30:57]} {[%emt
00:00:03]} 2. Nf3 {[%clk 01:31:23]} {[%emt 00:00:04]} d6 {[%clk 01:31:25]}
{[%emt 00:00:03]} 3. d4 {[%clk 01:31:43]} {[%emt 00:00:10]} cxd4 {[%clk
01:31:51]} {[%emt 00:00:04]} 4. Nxd4 {[%clk 01:31:51]} {[%emt 00:00:22]} Nf6
{[%clk 01:32:15]} {[%emt 00:00:06]} 5. Nc3 {[%clk 01:32:13]} {[%emt 00:00:08]}
e6 {[%clk 01:32:38]} {[%emt 00:00:07]} 6. Be2 {[%clk 01:31:47]} {[%emt
00:00:55]} a6 {[%clk 01:31:25]} {[%emt 00:01:44]} 7. g4 {[%clk 01:31:41]}
{[%emt 00:00:35]} Be7 {[%clk 01:30:23]} {[%emt 00:01:33]} 8. Rg1 {[%clk
01:30:54]} {[%emt 00:01:17]} b5 {[%clk 01:29:39]} {[%emt 00:01:15]} 9. a3
{[%clk 01:29:08]} {[%emt 00:02:16]} Bb7 {[%clk 01:29:37]} {[%emt 00:00:32]} 10.
Qd3 {[%clk 01:24:18]} {[%emt 00:05:20]} Nbd7 {[%clk 01:28:57]} {[%emt
00:01:10]} 11. Nb3 {[%clk 01:18:33]} {[%emt 00:06:16]} Nc5 {[%clk 01:19:34]}
{[%emt 00:09:53]} 12. Nxc5 {[%clk 01:17:27]} {[%emt 00:01:35]} dxc5 {[%clk
01:19:59]} {[%emt 00:00:06]} 13. e5 {[%clk 01:15:16]} {[%emt 00:02:41]} Nd5
{[%clk 01:14:25]} {[%emt 00:06:04]} 14. Nxd5 {[%clk 01:11:27]} {[%emt
00:04:19]} Qxd5 {[%clk 01:13:07]} {[%emt 00:01:47]} 15. Qxd5 {[%clk 01:10:45]}
{[%emt 00:01:13]} Bxd5 {[%clk 01:12:51]} {[%emt 00:00:46]} 16. Be3 {[%clk
01:10:21]} {[%emt 00:00:53]} O-O {[%clk 01:12:24]} {[%emt 00:00:58]} 17. f4
{[%clk 01:10:09]} {[%emt 00:00:42]} c4 {[%clk 01:02:10]} {[%emt 00:10:44]} 18.
Bf1 {[%clk 01:05:45]} {[%emt 00:04:54]} Rfd8 {[%clk 00:57:14]} {[%emt
00:05:26]} 19. Bg2 {[%clk 01:05:24]} {[%emt 00:00:51]} Bxg2 {[%clk 00:56:55]}
{[%emt 00:00:49]} 20. Rxg2 {[%clk 01:05:48]} {[%emt 00:00:05]} Rd5 {[%clk
00:56:45]} {[%emt 00:00:39]} 21. Rd2 {[%clk 01:05:35]} {[%emt 00:00:43]} Rad8
{[%clk 00:56:11]} {[%emt 00:01:05]} 22. Rad1 {[%clk 01:05:51]} {[%emt
00:00:14]} Rxd2 {[%clk 00:53:17]} {[%emt 00:03:24]} 23. Rxd2 {[%clk 01:06:15]}
{[%emt 00:00:06]} Rxd2 {[%clk 00:53:12]} {[%emt 00:00:35]} 24. Bxd2 {[%clk
01:06:37]} {[%emt 00:00:08]} Kf8 {[%clk 00:51:56]} {[%emt 00:01:46]} 25. Bb4
{[%clk 01:06:59]} {[%emt 00:00:08]} Bxb4+ {[%clk 00:52:17]} {[%emt 00:00:09]}
26. axb4 {[%clk 01:07:22]} {[%emt 00:00:07]} Ke7 {[%clk 00:52:32]} {[%emt
00:00:15]} 27. Ke2 {[%clk 01:07:44]} {[%emt 00:00:08]} Kd7 {[%clk 00:52:05]}
{[%emt 00:00:57]} 28. Ke3 {[%clk 01:08:04]} {[%emt 00:00:10]} g6 {[%clk
00:49:45]} {[%emt 00:02:51]} 29. Kd4 {[%clk 01:06:53]} {[%emt 00:01:42]} Kc6
{[%clk 00:49:05]} {[%emt 00:01:10]} 1/2-1/2

[Event "Mistrovství Čech mládeže 2023 - HD14"]
[Site "Harrachov, Czech Republic"]
[Date "2023.10.25"]
[Round "6.17"]
[White "Petrášek, Jiří"]
[Black "Ausperger, Vít"]
[Result "1-0"]
[TimeControl "90m + 30s"]
[WhiteElo "1423"]
[BlackElo "1302"]

1. e4 {[%clk 01:30:56]} {[%emt 00:00:03]} e5 {[%clk 01:30:55]} {[%emt
00:00:05]} 2. Nf3 {[%clk 01:31:20]} {[%emt 00:00:05]} Nc6 {[%clk 01:31:13]}
{[%emt 00:00:13]} 3. Bc4 {[%clk 01:31:41]} {[%emt 00:00:09]} Nf6 {[%clk
01:31:21]} {[%emt 00:00:21]} 4. d3 {[%clk 01:32:00]} {[%emt 00:00:12]} Bc5
{[%clk 01:31:41]} {[%emt 00:00:10]} 5. Nc3 {[%clk 01:32:15]} {[%emt 00:00:15]}
d6 {[%clk 01:31:56]} {[%emt 00:00:15]} 6. h3 {[%clk 01:32:33]} {[%emt
00:00:11]} O-O {[%clk 01:31:02]} {[%emt 00:01:24]} 7. Bg5 {[%clk 01:32:53]}
{[%emt 00:00:10]} Be6 {[%clk 01:30:05]} {[%emt 00:01:28]} 8. Nd5 {[%clk
01:30:45]} {[%emt 00:02:38]} Bxd5 {[%clk 01:28:56]} {[%emt 00:01:39]} 9. Bxd5
{[%clk 01:31:07]} {[%emt 00:00:08]} Rb8 {[%clk 01:28:49]} {[%emt 00:00:37]} 10.
O-O {[%clk 01:31:05]} {[%emt 00:00:31]} Nb4 {[%clk 01:15:16]} {[%emt 00:14:04]}
11. Bb3 {[%clk 01:27:37]} {[%emt 00:03:56]} Re8 {[%clk 01:05:07]} {[%emt
00:10:40]} 12. c3 {[%clk 01:23:42]} {[%emt 00:04:26]} Nc6 {[%clk 00:58:40]}
{[%emt 00:06:57]} 13. Re1 {[%clk 01:19:32]} {[%emt 00:04:39]} Qe7 {[%clk
00:46:45]} {[%emt 00:12:25]} 14. Nh4 {[%clk 01:07:15]} {[%emt 00:12:47]} h6
{[%clk 00:40:59]} {[%emt 00:06:16]} 15. Nf5 {[%clk 01:06:23]} {[%emt 00:01:21]}
Qd8 {[%clk 00:40:21]} {[%emt 00:01:08]} 16. Bh4 {[%clk 01:04:23]} {[%emt
00:02:30]} Kh7 {[%clk 00:40:01]} {[%emt 00:00:50]} 17. Qf3 {[%clk 00:43:30]}
{[%emt 00:21:24]} g5 {[%clk 00:37:21]} {[%emt 00:03:09]} 18. Bg3 {[%clk
00:40:08]} {[%emt 00:03:52]} Rf8 {[%clk 00:34:00]} {[%emt 00:03:51]} 19. Qe2
{[%clk 00:35:54]} {[%emt 00:04:43]} Ne7 {[%clk 00:29:48]} {[%emt 00:04:42]} 20.
Nxe7 {[%clk 00:30:43]} {[%emt 00:05:42]} Qxe7 {[%clk 00:30:00]} {[%emt
00:00:17]} 21. Qf3 {[%clk 00:31:02]} {[%emt 00:00:11]} Kg7 {[%clk 00:25:33]}
{[%emt 00:04:57]} 22. d4 {[%clk 00:23:31]} {[%emt 00:08:02]} exd4 {[%clk
00:22:20]} {[%emt 00:03:44]} 23. e5 {[%clk 00:22:56]} {[%emt 00:01:04]} Nd7
{[%clk 00:16:34]} {[%emt 00:06:17]} 24. exd6 {[%clk 00:22:15]} {[%emt
00:01:11]} Qf6 {[%clk 00:16:10]} {[%emt 00:00:54]} 25. dxc7 {[%clk 00:21:36]}
{[%emt 00:01:09]} Rbc8 {[%clk 00:14:16]} {[%emt 00:02:24]} 26. Qxb7 {[%clk
00:16:57]} {[%emt 00:05:09]} h5 {[%clk 00:10:48]} {[%emt 00:03:57]} 27. Re2
{[%clk 00:11:10]} {[%emt 00:06:17]} h4 {[%clk 00:06:37]} {[%emt 00:04:41]} 28.
Bh2 {[%clk 00:11:25]} {[%emt 00:00:15]} d3 {[%clk 00:06:22]} {[%emt 00:00:46]}
29. Rd2 {[%clk 00:11:10]} {[%emt 00:00:44]} Rfe8 {[%clk 00:05:54]} {[%emt
00:00:58]} 30. Qf3 {[%clk 00:10:53]} {[%emt 00:00:47]} Qxf3 {[%clk 00:04:48]}
{[%emt 00:01:36]} 31. gxf3 {[%clk 00:11:13]} {[%emt 00:00:10]} Re2 {[%clk
00:04:58]} {[%emt 00:00:19]} 32. Rxe2 {[%clk 00:10:52]} {[%emt 00:00:52]} dxe2
{[%clk 00:05:12]} {[%emt 00:00:16]} 33. Re1 {[%clk 00:11:01]} {[%emt 00:00:21]}
Bb6 {[%clk 00:05:09]} {[%emt 00:00:33]} 34. Rxe2 {[%clk 00:10:59]} {[%emt
00:00:32]} Bxc7 {[%clk 00:05:30]} {[%emt 00:00:09]} 35. Bxc7 {[%clk 00:11:17]}
{[%emt 00:00:12]} Rxc7 {[%clk 00:05:49]} {[%emt 00:00:11]} 36. Re7 {[%clk
00:11:38]} {[%emt 00:00:08]} Rb7 {[%clk 00:05:25]} {[%emt 00:00:55]} 37. Rxf7+
{[%clk 00:11:40]} {[%emt 00:00:29]} Kg6 {[%clk 00:05:42]} {[%emt 00:00:13]} 38.
Re7 {[%clk 00:10:54]} {[%emt 00:01:15]} Kf6 {[%clk 00:05:59]} {[%emt 00:00:14]}
39. Re6+ {[%clk 00:09:57]} {[%emt 00:01:27]} Kf5 {[%clk 00:06:15]} {[%emt
00:00:15]} 40. Rh6 {[%clk 00:09:45]} {[%emt 00:00:41]} Nf6 {[%clk 00:06:07]}
{[%emt 00:00:38]} 41. Bc2+ {[%clk 00:09:29]} {[%emt 00:00:47]} Ke5 {[%clk
00:06:12]} {[%emt 00:00:25]} 42. Rg6 {[%clk 00:07:48]} {[%emt 00:02:11]} Rxb2
{[%clk 00:05:52]} {[%emt 00:00:50]} 43. Rxg5+ {[%clk 00:07:42]} {[%emt
00:00:36]} Kf4 {[%clk 00:05:37]} {[%emt 00:00:44]} 44. Rf5# {[%emt 00:00:19]}
1-0

[Event "Mistrovství Čech mládeže 2023 - HD14"]
[Site "Harrachov, Czech Republic"]
[Date "2023.10.26"]
[Round "7.1"]
[White "Váňa, Jan"]
[Black "Roubal, Matyáš"]
[Result "1/2-1/2"]
[TimeControl "90m + 30s"]
[WhiteElo "1969"]
[BlackElo "1884"]

1. d4 {[%clk 01:30:49]} {[%emt 00:00:09]} Nf6 {[%clk 01:30:53]} {[%emt
00:00:08]} 2. Nc3 {[%clk 01:30:51]} {[%emt 00:00:28]} c5 {[%clk 01:30:51]}
{[%emt 00:00:33]} 3. Nf3 {[%clk 01:28:37]} {[%emt 00:02:44]} a6 {[%clk
01:28:22]} {[%emt 00:03:00]} 4. e4 {[%clk 01:27:04]} {[%emt 00:02:02]} cxd4
{[%clk 01:27:20]} {[%emt 00:01:33]} 5. Nxd4 {[%clk 01:27:14]} {[%emt 00:00:20]}
d6 {[%clk 01:25:01]} {[%emt 00:02:49]} 6. Bc4 {[%clk 01:25:32]} {[%emt
00:02:11]} e6 {[%clk 01:23:23]} {[%emt 00:02:09]} 7. Bb3 {[%clk 01:22:19]}
{[%emt 00:03:41]} Be7 {[%clk 01:21:22]} {[%emt 00:02:31]} 8. Be3 {[%clk
01:20:17]} {[%emt 00:02:33]} b5 {[%clk 01:18:53]} {[%emt 00:03:00]} 9. Qf3
{[%clk 01:17:51]} {[%emt 00:02:55]} Qc7 {[%clk 01:17:50]} {[%emt 00:01:33]} 10.
g4 {[%clk 01:14:30]} {[%emt 00:03:51]} b4 {[%clk 01:14:53]} {[%emt 00:03:28]}
11. Nce2 {[%clk 01:12:41]} {[%emt 00:02:17]} Nfd7 {[%clk 01:10:47]} {[%emt
00:04:36]} 12. Qxf7+ {[%clk 00:58:39]} {[%emt 00:14:33]} Kxf7 {[%clk 01:06:04]}
{[%emt 00:05:13]} 13. Nxe6 {[%clk 00:58:47]} {[%emt 00:00:21]} Qa5 {[%clk
01:06:16]} {[%emt 00:00:18]} 14. Nc7+ {[%clk 00:58:20]} {[%emt 00:00:58]} Kf8
{[%clk 01:05:41]} {[%emt 00:01:06]} 15. Ne6+ {[%clk 00:58:37]} {[%emt
00:00:13]} Ke8 {[%clk 01:05:41]} {[%emt 00:00:29]} 16. Nxg7+ {[%clk 00:58:54]}
{[%emt 00:00:13]} Kd8 {[%clk 01:05:53]} {[%emt 00:00:18]} 17. Ne6+ {[%clk
00:59:18]} {[%emt 00:00:05]} Ke8 {[%clk 01:06:19]} {[%emt 00:00:05]} 18. Ng7+
{[%clk 00:59:40]} {[%emt 00:00:08]} Kf8 {[%clk 01:06:41]} {[%emt 00:00:08]} 19.
Ne6+ {[%clk 00:59:39]} {[%emt 00:00:31]} Kf7 {[%clk 01:07:00]} {[%emt
00:00:12]} 20. Nc7+ {[%clk 00:59:36]} {[%emt 00:00:32]} Kg7 {[%clk 01:06:44]}
{[%emt 00:00:17]} 21. Ne6+ {[%clk 00:59:30]} {[%emt 00:00:36]} Kf7 {[%clk
01:07:31]} {[%emt 00:00:12]} 1/2-1/2